[Event "9th Porticcio Open 2024"]
[Site "Porticcio"]
[Date "2024.07.03"]
[Round "7.7"]
[White "Kuru, Atilla"]
[Black "Druska, Juraj"]
[Result "1-0"]
[ECO "C28"]
[WhiteElo "2314"]
[BlackElo "2466"]
[Annotator "TA"]
[PlyCount "109"]
[EventDate "2024.07.01"]
[EventType "swiss"]
[EventCountry "FRA"]
[SourceTitle "playchess.com"]
[Source "ChessBase"]
[SourceQuality "1"]
[TimeControl "5400+30"]

{[%evp 32,109,1,-6,-7,-13,-10,-6,18,14,14,0,29,37,47,38,53,0,103,-64,338,313,391,302,316,309,306,225,318,315,312,237,324,306,304,227,249,251,245,241,246,231,251,251,235,221,364,354,401,368,414,415,515,519,594,606,808,790,747,677,1379,657,694,659,913,879,1082,1066,1329,1195,2556,2102,3680,3149,2820,919,1929,1549,1481,1370]} 1. e4 {[%emt 0:03:39]} e5 {[%emt 0:00:10]} 2. Bc4 {[%emt 0:00:07]} Nf6 {[%emt 0:01:19]} 3. Nc3 {[%emt 0:00:07]} Nc6 {[%emt 0:05:54]} 4. d3 {[%emt 0:00:05]} Na5 {[%emt 0:01:50]} 5. Qf3 {[%emt 0:00:05]} d6 {[%emt 0:04:16]} 6. Nge2 {[%emt 0:02:11] C28: Vienna Game: 2...Nf6 3 Bc4 Nc6.} Be7 {[%emt 0:08:00]} 7. h3 {[%emt 0:01:59]} Nxc4 {[%emt 0:19:01]} 8. dxc4 {[%emt 0:00:07]} Be6 {[%emt 0:00:06]} 9. b3 {[%emt 0:00:05]} Nd7 {[%emt 0:01:02]} 10. Ng3 {[%emt 0:03:06]} g6 $146 {[%emt 0:01:23]} ({Predecessor:} 10... Bg5 11. Nh5 Rg8 12. Qg3 Bxc1 13. Rxc1 g6 14. f4 f6 15. Qf3 gxh5 16. Qxh5+ Bf7 17. Qxh7 Rxg2 18. Kf1 Rg8 19. Rg1 Rxg1+ 20. Kxg1 Qe7 {0-1 Ponkratov,P (2632)-Nakamura,H (2736) Wch Blitz Moscow 2019 (8)}) 11. Bh6 {[%emt 0:04:30]} Bg5 {[%emt 0:02:37]} 12. Bxg5 {[%emt 0:00:13]} Qxg5 {[%emt 0:00:02]} 13. h4 {[%emt 0:01:02]} Qf6 {[%emt 0:03:11]} 14. Nb5 {[%emt 0:01:03]} Qd8 {[%emt 0:04:01]} 15. Qe3 {[%emt 0:07:00]} a6 {[%emt 0:01:00]} 16. Nc3 {[%emt 0:00:06]} Qf6 {[%emt 0:03:32]} 17. a4 {[%emt 0:02:17]} Qg7 {[%emt 0:01:28]} 18. Nd5 {[%emt 0:08:26]} Bxd5 {[%emt 0:00:11]} 19. cxd5 {[%emt 0:01:12]} f5 {[%emt 0:02:02]} 20. exf5 {[%emt 0:01:56]} gxf5 {[%emt 0:00:52]} 21. Nxf5 {[%emt 0:01:41]} Qxg2 {[%emt 0:04:39]} 22. O-O-O {[%emt 0:00:07]} Qg6 {[%emt 0:01:35]} 23. Nd4 $1 {[%emt 0:04:17]} Nf6 {[%emt 0:03:25]} 24. Nf3 {[%emt 0:08:56]} ({Better is} 24. Ne6 $14 Nxd5 25. Qh3 (25. Rxd5 Qxe6 26. Rd2 Rf8 $17)) 24... O-O-O {[%emt 0:14:24]} (24... Qe4 $11 {remains equal.}) 25. Rhg1 $2 {[%emt 0:00:11]} ({White must play} 25. Qa7 $16) 25... Ng4 $2 {[%emt 0:00:59][%mdl 8192]} (25... Qf5 $15 {stays ahead.} 26. Rg5 Qe4) 26. Qa7 $18 {[%emt 0:00:40]} Qf5 {[%emt 0:04:23]} 27. Nd2 {[%emt 0:00:22]} Rhg8 {[%emt 0:03:27]} 28. f3 {[%emt 0:01:01]} Nf6 {[%emt 0:00:21]} 29. Qa8+ {[%emt 0:00:17]} Kd7 {[%emt 0:00:01]} 30. Qxb7 {[%emt 0:00:03]} Qf4 {[%emt 0:00:36]} 31. Qc6+ {[%emt 0:00:37]} (31. Qxa6 $6 Qd4 32. Rxg8 Rxg8 $16) 31... Ke7 {[%emt 0:00:02]} 32. Qxc7+ {[%emt 0:01:38]} Nd7 {[%emt 0:00:31]} 33. Qc4 {[%emt 0:00:27]} Qxc4 {[%emt 0:02:06]} 34. Nxc4 {[%emt 0:00:14]} Rdf8 {[%emt 0:00:07]} 35. Rdf1 {[%emt 0:00:43]} Nf6 {[%emt 0:01:15]} 36. Ne3 {[%emt 0:01:03]} Nh5 {[%emt 0:00:09]} 37. Rxg8 {[%emt 0:04:08]} Rxg8 {[%emt 0:00:02]} 38. Kd2 {[%emt 0:00:46]} Nf4 {[%emt 0:04:00]} (38... Kd7 {is a better defense.} 39. Kc3 Ng3) 39. b4 $18 {[%emt 0:00:42]} Kd7 {[%emt 0:00:55]} 40. c4 {[%emt 0:00:17]} Kc7 {[%emt 0:00:47]} 41. a5 {[%emt 0:00:38]} Rg3 {[%emt 0:00:22]} 42. b5 {[%emt 0:03:27]} axb5 {[%emt 0:02:06]} 43. cxb5 {[%emt 0:00:01]} Rh3 {[%emt 0:00:11]} 44. Rg1 {[%emt 0:01:02]} Rh2+ {[%emt 0:00:56]} 45. Kd1 {[%emt 0:00:00]} Ra2 {[%emt 0:01:18]} 46. Rg7+ {[%emt 0:00:07]} (46. b6+ $142 Kb7 47. Rg7+ Ka8 48. Rg8+ (48. Rxh7 Rxa5 49. h5 Ra1+ 50. Kc2 Rh1 $18) 48... Kb7 49. Nc4 Nxd5 50. Nxd6+ Kc6 51. b7) 46... Kb8 $18 {[%emt 0:00:03]} 47. a6 {[%emt 0:00:51]} Ka8 {[%emt 0:01:55]} 48. Rxh7 {[%emt 0:01:02]} Ra5 {[%emt 0:01:10]} 49. Rb7 {[%emt 0:00:07]} e4 {[%emt 0:00:13]} 50. fxe4 {[%emt 0:00:42]} Ra1+ {[%emt 0:00:49]} 51. Kd2 {[%emt 0:00:04]} Ra2+ {[%emt 0:00:14]} 52. Nc2 {[%emt 0:00:04]} Nxd5 {[%emt 0:00:14]} 53. Rd7 {[%emt 0:01:04]} Nb6 {[%emt 0:01:15]} 54. Rd8+ {[%emt 0:00:11]} (54. Rxd6 Nc4+ 55. Kc3 Nxd6 $19) 54... Ka7 {[%emt 0:00:01]} 55. Kc3 {[%emt 0:00:26]} (55. Rxd6 Nc4+ 56. Kc3 Nxd6 $19) 1-0

[Event "9th Porticcio Open 2024"]
[Site "Porticcio"]
[Date "2024.07.03"]
[Round "7.8"]
[White "Rakotomaharo, Fy Antenaina"]
[Black "Ha, Yihan"]
[Result "1-0"]
[ECO "B12"]
[WhiteElo "2448"]
[BlackElo "2166"]
[Annotator "TA"]
[PlyCount "119"]
[EventDate "2024.07.01"]
[EventType "swiss"]
[EventCountry "FRA"]
[SourceTitle "playchess.com"]
[Source "ChessBase"]
[SourceQuality "1"]
[TimeControl "5400+30"]

{[%evp 44,119,116,116,172,98,100,104,99,96,83,83,118,111,107,110,239,210,200,226,190,172,168,156,193,196,197,191,281,225,658,306,315,312,250,238,689,662,314,321,316,301,267,70,162,103,144,153,223,121,121,121,133,132,268,263,206,209,308,300,417,410,1002,1010,844,644,29966,29959,29961,29957,8503,7555,4269,4046,11906,9570,29964,924]} 1. e4 {[%emt 0:04:47]} c6 {[%emt 0:00:06]} 2. d4 {[%emt 0:00:30]} d5 {[%emt 0:00:05]} 3. e5 {[%emt 0:00:04]} Bf5 {[%emt 0:00:08]} 4. h4 {[%emt 0:00:06]} h5 {[%emt 0:00:18]} 5. c4 {[%emt 0:00:11]} e6 {[%emt 0:01:03]} 6. Nc3 {[%emt 0:00:08]} Ne7 {[%emt 0:01:06]} 7. Nge2 {[%emt 0:00:39]} Nd7 {[%emt 0:09:06]} 8. Ng3 {[%emt 0:01:25]} Bg6 {[%emt 0:00:46]} 9. Bg5 {[%emt 0:01:55]} Qb6 {[%emt 0:01:50]} 10. Qd2 {[%emt 0:10:03]} f6 {[%emt 0:03:40]} 11. Be3 {[%emt 0:04:36]} O-O-O {[%emt 0:04:33]} 12. c5 {[%emt 0:06:47]} Qc7 {[%emt 0:05:48]} 13. f4 {[%emt 0:00:28]} Nf5 {[%emt 0:04:48]} 14. Nxf5 {[%emt 0:02:37]} Bxf5 {[%emt 0:00:13]} 15. b4 {[%emt 0:00:38]} fxe5 {[%emt 0:05:50]} 16. fxe5 {[%emt 0:00:46]} Be7 {[%emt 0:01:51]} 17. Bd3 {[%emt 0:08:07]} Rhf8 {[%emt 0:09:57]} 18. O-O {[%emt 0:03:23]} Bxd3 {[%emt 0:07:31]} 19. Qxd3 {[%emt 0:00:07]} Bxh4 {[%emt 0:01:21]} 20. Qg6 {[%emt 0:05:13]} Nxe5 {[%emt 0:04:16]} 21. dxe5 {[%emt 0:00:42]} Qxe5 {[%emt 0:02:00]} 22. Qd3 {[%emt 0:00:15]} Bf6 {[%emt 0:07:37]} 23. Ne2 {[%emt 0:00:58]} d4 {[%emt 0:04:43] [#]} (23... h4 $16 {keeps fighting.}) 24. Bf4 {[%emt 0:02:00]} ({White should play} 24. Bd2 $1 $18) 24... Qf5 $16 {[%emt 0:00:40]} 25. Qxf5 {[%emt 0:02:52]} exf5 {[%emt 0:00:06]} 26. Rad1 {[%emt 0:00:10]} Rfe8 {[%emt 0:02:02]} 27. Nc1 {[%emt 0:00:35]} Rd5 {[%emt 0:06:09]} 28. Nd3 {[%emt 0:06:08]} g5 {[%emt 0:02:07]} 29. Bd6 {[%emt 0:00:08]} Re2 {[%emt 0:03:27] [#]} (29... Kd7 $16) 30. b5 $1 $18 {[%emt 0:01:32]} f4 {[%emt 0:01:14]} (30... cxb5 31. Nb4 Rxd6 32. cxd6 $18) 31. bxc6 {[%emt 0:00:47]} (31. Nb4 Rxd6 32. cxd6 c5 $18) 31... bxc6 {[%emt 0:00:06]} 32. Bxf4 {[%emt 0:06:10]} Be7 {[%emt 0:05:16]} (32... gxf4 33. Nxf4 d3 34. Nxd5 Bd4+ 35. Kh2 cxd5 36. Rxd3 Be5+ 37. Kh3 $18) 33. Bh2 {[%emt 0:06:32]} Bxc5 {[%emt 0:01:07]} 34. Rc1 {[%emt 0:00:56]} Bb6 {[%emt 0:03:43]} 35. Rxc6+ {[%emt 0:00:06]} Kb7 {[%emt 0:00:50]} (35... Kd7 $142 36. Rh6 h4) 36. Rh6 $18 {[%emt 0:00:17]} Rd7 $2 {[%emt 0:01:32]} (36... Rd8 37. Rf7+ (37. Rxh5 Rd2 $18) 37... Ka8) 37. Rb1 {[%emt 0:01:58]} (37. Rf8 $142 {[%cal Od3c5] Nc5+! would kill now.} Rc2 38. Rb8+ (38. Rxh5 Rc3 $11) 38... Ka6 39. Rbxb6+ (39. Rxh5 Rc3 $11) (39. Nb4+ Ka5 $18) 39... axb6 40. Nb4+ (40. Rxh5 $2 Rc3 $19) 40... Kb5 41. Nxc2) 37... Rd8 {[%emt 0:01:10]} 38. a4 {[%emt 0:13:44]} Ka8 {[%emt 0:00:31]} 39. Ra1 {[%emt 0:00:41]} Rd2 $2 {[%emt 0:00:32]} (39... Ba5 40. Rd1 (40. Rxh5 Rd2 $18) 40... Ra2 41. Rxh5 Bd2) 40. a5 $18 {[%emt 0:00:47]} Bxa5 {[%emt 0:00:48]} 41. Rxa5 {[%emt 0:00:07]} Rd1+ {[%emt 0:00:17]} 42. Kf2 {[%emt 0:01:21]} Rxd3 {[%emt 0:00:19]} 43. Rf6 $2 {[%emt 0:01:02]} (43. Rxg5 Rf8+ 44. Ke2 Re3+ 45. Kd2 Rf2+ 46. Kd1 Rf1+ 47. Kd2 Rf2+ 48. Kd1 Rf1+ 49. Kd2 Rf2+ $11) (43. Bc7 $18 Rf8+ 44. Kg1) 43... Rb3 {[%emt 0:00:31]} (43... Rd2+ $14 44. Kg1 Rd1+ 45. Rf1 (45. Kf2 Rd2+ 46. Kf3 g4+ 47. Kg3 h4+ 48. Kxg4 Rxg2+ 49. Kh3 Rb2 $16) 45... Rxf1+ 46. Kxf1 h4 (46... d3 47. Ke1 $16)) 44. Rf7 {[%emt 0:01:13]} (44. Rxg5 Rb2+ 45. Ke1 d3) (44. Bc7 $18 Rc8 45. Bb6) 44... Rb2+ {[%emt 0:00:04]} 45. Ke1 {[%emt 0:01:14]} Re8+ {[%emt 0:01:11]} (45... Rb1+ $16 46. Kd2 Rb7 47. Rxb7 Kxb7 48. Rxg5 h4) 46. Kd1 {[%emt 0:00:18]} ({Only move:} 46. Be5 $18 {[%csl Ga5][%cal Rf7a7]} Rb7 47. Rf5) 46... Rb7 $16 {[%emt 0:00:25]} 47. Rxb7 {[%emt 0:00:04]} Kxb7 {[%emt 0:00:03]} 48. Rxg5 {[%emt 0:00:06]} Rh8 {[%emt 0:00:42]} (48... h4 $16 49. Rg4 Rh8 50. Rxd4 Rg8) 49. Be5 $18 {[%emt 0:00:14]} Rh6 {[%emt 0:00:36]} 50. Bg7 {[%emt 0:00:31]} (50. Bxd4 Rd6 $11) 50... Rd6 {[%emt 0:00:30]} (50... Rh7 $142 51. Bxd4 Kc6 52. Rc5+ Kd6) 51. g3 $18 {[%emt 0:01:06]} ({Inferior is} 51. Rxh5 Rg6 $11) 51... Rd7 {[%emt 0:00:27]} 52. Kd2 {[%emt 0:00:24]} a5 {[%emt 0:00:13]} (52... Kc6 $142 53. Kd3 Rf7 54. Bxd4 (54. Kxd4 h4 $18) 54... a5) 53. Kd3 $18 {[%emt 0:00:06]} a4 {[%emt 0:00:31]} 54. Bxd4 {[%emt 0:00:41]} Ka6 {[%emt 0:00:56]} 55. Kc4 {[%emt 0:02:34]} a3 {[%emt 0:00:38]} 56. Rg6+ {[%emt 0:00:04]} Kb7 {[%emt 0:00:16]} 57. Rb6+ {[%emt 0:00:12]} Kc7 {[%emt 0:00:11]} 58. Ra6 {[%emt 0:00:09]} Kb8 {[%emt 0:00:53]} 59. Rxa3 {[%emt 0:00:29]} Rh7 {[%emt 0:00:21]} 60. Bf6 {[%emt 0:02:18]} (60. Be5+ $142 Kc8 61. Kd5 Rh6 62. Ra8+ Kd7 63. Rh8 Rb6 64. Rh7+ (64. Rxh5 Rb5+ 65. Ke4 Rb3 $18) 64... Kc8 65. Rxh5) 1-0

[Event "9th Porticcio Open 2024"]
[Site "Porticcio"]
[Date "2024.07.03"]
[Round "7.9"]
[White "Grisoni, Emma"]
[Black "Daulet, Alikhan"]
[Result "0-1"]
[ECO "B26"]
[WhiteElo "1746"]
[BlackElo "1877"]
[Annotator "NA RC"]
[PlyCount "100"]
[EventDate "2024.07.01"]
[EventType "swiss"]
[EventCountry "FRA"]
[SourceTitle "playchess.com"]
[Source "ChessBase"]
[SourceQuality "1"]
[TimeControl "5400+30"]

1. e4 {[%emt 0:00:02]} c5 {[%emt 0:00:08]} 2. Nc3 {[%emt 0:00:07]} Nc6 {[%emt 0:00:11]} 3. g3 {[%emt 0:00:10]} g6 {[%emt 0:00:16]} 4. Bg2 {[%emt 0:00:03]} Bg7 {[%emt 0:00:05]} 5. d3 {[%emt 0:00:10]} d6 {[%emt 0:00:13]} 6. Be3 {[%emt 0:00:14]} Rb8 {[%emt 0:00:17]} 7. Qd2 {[%emt 0:00:27]} b5 {[%emt 0:00:09]} 8. Nge2 {[%emt 0:00:24]} b4 {[%emt 0:00:21]} 9. Nd1 {[%emt 0:00:09]} h5 {[%emt 0:00:15]} 10. h4 {[%emt 0:00:28]} Nf6 {[%emt 0:00:43]} 11. f3 {[%emt 0:01:39]} a5 {[%emt 0:01:04]} 12. c3 {[%emt 0:02:54]} Ba6 {[%emt 0:02:06]} 13. c4 {[%emt 0:09:22]} Nd7 {[%emt 0:02:50]} 14. Rc1 {[%emt 0:03:42]} Nd4 {[%emt 0:00:32]} 15. O-O {[%emt 0:05:22]} Bc8 {[%emt 0:03:06]} 16. f4 {[%emt 0:10:57]} O-O {[%emt 0:05:39]} 17. f5 {[%emt 0:05:07]} e6 {[%emt 0:08:02]} 18. Nxd4 {[%emt 0:02:49]} cxd4 {[%emt 0:00:29]} 19. Bh6 {[%emt 0:00:19]} Nf6 {[%emt 0:05:11]} 20. fxg6 {[%emt 0:06:26]} fxg6 {[%emt 0:00:04]} 21. Qg5 {[%emt 0:01:19]} Kh7 {[%emt 0:02:36]} 22. Bxg7 {[%emt 0:00:19]} Kxg7 {[%emt 0:00:04]} 23. e5 {[%emt 0:03:57]} Ng4 {[%emt 0:03:13]} 24. Qxd8 {[%emt 0:09:00]} Rxd8 {[%emt 0:00:04]} 25. exd6 {[%emt 0:00:11]} Rxd6 {[%emt 0:00:03]} 26. Bh3 {[%emt 0:00:40]} Ne5 {[%emt 0:08:46]} 27. Nf2 {[%emt 0:37:43]} Bb7 {[%emt 0:01:44]} 28. Bg2 {[%emt 0:00:00]} Bxg2 {[%emt 0:00:37]} 29. Kxg2 {[%emt 0:00:00]} Rf8 {[%emt 0:01:45]} 30. Ne4 {[%emt 0:00:00]} Rc6 {[%emt 0:00:56]} 31. Rxf8 {[%emt 0:00:00]} Kxf8 {[%emt 0:00:01]} 32. Nf2 {[%emt 0:00:00]} Ke7 {[%emt 0:00:23]} 33. Re1 {[%emt 0:00:00]} Nd7 {[%emt 0:00:50]} 34. Kf3 {[%emt 0:00:00]} Rc5 {[%emt 0:00:58]} 35. Re4 {[%emt 0:00:00]} Rf5+ {[%emt 0:00:22]} 36. Rf4 {[%emt 0:00:00]} e5 {[%emt 0:00:23]} 37. Rxf5 {[%emt 0:00:00]} gxf5 {[%emt 0:00:05]} 38. Ke2 {[%emt 0:00:00]} Nc5 {[%emt 0:00:13]} 39. Nd1 {[%emt 0:00:00]} Ke6 {[%emt 0:00:45]} 40. Nf2 {[%emt 0:00:00]} Na4 {[%emt 0:00:54]} 41. Nd1 {[%emt 0:00:00]} e4 {[%emt 0:00:16]} 42. Nf2 {[%emt 0:00:00]} Ke5 {[%emt 0:01:46]} 43. Nh3 {[%emt 0:01:22]} Nxb2 {[%emt 0:03:10]} 44. Nf4 {[%emt 0:00:33]} a4 {[%emt 0:01:24]} 45. Kd2 {[%emt 0:03:13]} Nxd3 {[%emt 0:00:27]} 46. Nxd3+ {[%emt 0:01:28]} exd3 {[%emt 0:00:09]} 47. Kxd3 {[%emt 0:00:05]} b3 {[%emt 0:01:20]} 48. axb3 {[%emt 0:01:07]} a3 {[%emt 0:00:34]} 49. Kc2 {[%emt 0:01:49]} d3+ {[%emt 0:00:07]} 50. Kc3 {[%emt 0:00:29]} d2 {[%emt 0:00:07]} 0-1

[Event "9th Porticcio Open 2024"]
[Site "Porticcio"]
[Date "2024.07.03"]
[Round "7.10"]
[White "Michalska, Lena"]
[Black "Deladerriere, Helio"]
[Result "0-1"]
[ECO "E11"]
[WhiteElo "1747"]
[BlackElo "1850"]
[Annotator "NA RC"]
[PlyCount "88"]
[EventDate "2024.07.01"]
[EventType "swiss"]
[EventCountry "FRA"]
[SourceTitle "playchess.com"]
[Source "ChessBase"]
[SourceQuality "1"]
[TimeControl "5400+30"]

1. c4 {[%emt 0:00:01]} e5 {[%emt 0:00:53]} 2. g3 {[%emt 0:00:12]} Nf6 {[%emt 0:00:29]} 3. Bg2 {[%emt 0:00:04]} Bc5 {[%emt 0:00:17]} 4. Nc3 {[%emt 0:00:10]} O-O {[%emt 0:00:27]} 5. Nf3 {[%emt 0:00:15]} d6 {[%emt 0:00:12]} 6. d4 {[%emt 0:06:10]} exd4 {[%emt 0:00:51]} 7. Nxd4 {[%emt 0:00:04]} Nbd7 {[%emt 0:02:01]} 8. O-O {[%emt 0:01:18]} Ne5 {[%emt 0:02:26]} 9. b3 {[%emt 0:01:10]} c6 {[%emt 0:02:43]} 10. Bb2 {[%emt 0:02:15]} Bb6 {[%emt 0:05:16]} 11. Rc1 {[%emt 0:14:06]} Bd7 {[%emt 0:09:00]} 12. Ba3 {[%emt 0:04:56]} Be6 {[%emt 0:07:34]} 13. Nxe6 {[%emt 0:04:17]} fxe6 {[%emt 0:01:59]} 14. Qxd6 {[%emt 0:01:10]} Ned7 {[%emt 0:01:50]} 15. Qxe6+ {[%emt 0:03:37]} Rf7 {[%emt 0:00:07]} 16. Ne4 {[%emt 0:03:05]} Nxe4 {[%emt 0:03:37]} 17. Bxe4 {[%emt 0:00:45]} Nf8 {[%emt 0:08:55]} 18. Qg4 {[%emt 0:03:51]} Qf6 {[%emt 0:04:23]} 19. c5 {[%emt 0:07:47]} Bc7 {[%emt 0:01:23]} 20. Bd3 {[%emt 0:00:18]} Kh8 {[%emt 0:00:23]} 21. Bb4 {[%emt 0:03:09]} Be5 {[%emt 0:01:00]} 22. Rc4 {[%emt 0:02:36]} Ne6 {[%emt 0:02:51]} 23. Bxh7 {[%emt 0:06:49]} Kxh7 {[%emt 0:02:18]} 24. Qh3+ {[%emt 0:00:13]} Kg8 {[%emt 0:00:20]} 25. Rh4 {[%emt 0:00:11]} g6 {[%emt 0:00:31]} 26. Qg2 {[%emt 0:12:19]} Rd8 {[%emt 0:06:01]} 27. e3 {[%emt 0:07:34]} Bc3 {[%emt 0:05:29]} 28. Bxc3 {[%emt 0:01:00]} Qxc3 {[%emt 0:00:07]} 29. Rc4 {[%emt 0:00:29]} Qf6 {[%emt 0:00:39]} 30. f4 {[%emt 0:07:02]} Rfd7 {[%emt 0:02:01]} 31. Rc2 {[%emt 0:00:52]} Rd1 {[%emt 0:01:48]} 32. Qe2 {[%emt 0:01:20]} Qa1 {[%emt 0:05:34]} 33. Kg2 {[%emt 0:05:17]} Rxf1 {[%emt 0:03:17]} 34. Qxf1 {[%emt 0:00:05]} Qf6 {[%emt 0:00:12]} 35. Qc4 {[%emt 0:00:37]} Kh7 {[%emt 0:01:27]} 36. Qa4 {[%emt 0:00:32]} a6 {[%emt 0:01:34]} 37. Qb4 {[%emt 0:01:01]} Rd7 {[%emt 0:00:31]} 38. h4 {[%emt 0:00:14]} Qf5 {[%emt 0:00:53]} 39. e4 {[%emt 0:00:54]} Nxf4+ {[%emt 0:02:14]} 40. gxf4 {[%emt 0:00:56]} Qg4+ {[%emt 0:01:21]} 41. Kf1 {[%emt 0:01:40]} Rd1+ {[%emt 0:00:33]} 42. Kf2 {[%emt 0:00:05]} Qg1+ {[%emt 0:01:08]} 43. Ke2 {[%emt 0:00:14]} Qf1+ {[%emt 0:00:09]} 44. Ke3 {[%emt 0:00:08]} Rd3# {[%emt 0:00:05]} 0-1

[Event "9th Porticcio Open 2024"]
[Site "Porticcio"]
[Date "2024.07.03"]
[Round "7.11"]
[White "Winnubst, Paul"]
[Black "Ercoli, Andria"]
[Result "0-1"]
[ECO "E92"]
[WhiteElo "1871"]
[BlackElo "1723"]
[Annotator "NA RC"]
[PlyCount "64"]
[EventDate "2024.07.01"]
[EventType "swiss"]
[EventCountry "FRA"]
[SourceTitle "playchess.com"]
[Source "ChessBase"]
[SourceQuality "1"]
[TimeControl "5400+30"]

1. d4 {[%emt 0:00:04]} Nf6 {[%emt 0:00:08]} 2. c4 {[%emt 0:00:03]} g6 {[%emt 0:00:04]} 3. Nc3 {[%emt 0:00:02]} Bg7 {[%emt 0:00:08]} 4. e4 {[%emt 0:00:03]} d6 {[%emt 0:00:09]} 5. Nf3 {[%emt 0:00:03]} O-O {[%emt 0:00:38]} 6. Be2 {[%emt 0:00:03]} e5 {[%emt 0:00:34]} 7. Be3 {[%emt 0:00:08]} exd4 {[%emt 0:00:12]} 8. Nxd4 {[%emt 0:00:05]} Re8 {[%emt 0:00:17]} 9. Qc2 {[%emt 0:00:04]} c6 {[%emt 0:00:34]} 10. Rd1 {[%emt 0:00:04]} a5 {[%emt 0:07:24]} 11. O-O {[%emt 0:02:31]} Qe7 {[%emt 0:01:57]} 12. Bf3 {[%emt 0:08:23]} Nbd7 {[%emt 0:07:03]} 13. Rfe1 {[%emt 0:05:08]} Ne5 {[%emt 0:04:23]} 14. b3 {[%emt 0:07:56]} c5 {[%emt 0:11:17]} 15. Ndb5 {[%emt 0:03:25]} Nxf3+ {[%emt 0:00:35]} 16. gxf3 {[%emt 0:00:21]} Rd8 {[%emt 0:16:20]} 17. Bg5 {[%emt 0:09:35]} Be6 {[%emt 0:06:06]} 18. f4 {[%emt 0:02:53]} h6 {[%emt 0:08:05]} 19. Bh4 {[%emt 0:01:20]} g5 {[%emt 0:02:15]} 20. fxg5 {[%emt 0:02:09]} Ng4 {[%emt 0:01:05]} 21. Nd5 {[%emt 0:04:05]} Bxd5 {[%emt 0:00:32]} 22. exd5 {[%emt 0:00:46]} Ne5 {[%emt 0:02:17]} 23. Qf5 {[%emt 0:10:33]} hxg5 {[%emt 0:02:11]} 24. Bg3 {[%emt 0:00:07]} Qd7 {[%emt 0:04:57]} 25. Qxd7 {[%emt 0:07:02]} Rxd7 {[%emt 0:00:37]} 26. Kg2 {[%emt 0:00:47]} f5 {[%emt 0:03:28]} 27. f4 {[%emt 0:02:15]} gxf4 {[%emt 0:00:55]} 28. Bxf4 {[%emt 0:00:16]} Re8 {[%emt 0:04:06]} 29. Re3 {[%emt 0:02:38]} Bf8 {[%emt 0:02:12]} 30. Rde1 {[%emt 0:03:18]} Rg7+ {[%emt 0:00:55]} 31. Kh1 {[%emt 0:01:06]} Ng4 {[%emt 0:00:50]} 32. R3e2 {[%emt 0:01:10]} Nf2+ {[%emt 0:14:16]} 0-1

[Event "9th Porticcio Open 2024"]
[Site "Porticcio"]
[Date "2024.07.04"]
[Round "8.1"]
[White "Batsiashvili, Nino"]
[Black "Lagarde, Maxime"]
[Result "*"]
[ECO "D76"]
[WhiteElo "2450"]
[BlackElo "2604"]
[Annotator "TA"]
[PlyCount "74"]
[EventDate "2024.07.01"]
[EventType "swiss"]
[EventCountry "FRA"]
[SourceTitle "playchess.com"]
[Source "ChessBase"]
[SourceQuality "1"]
[TimeControl "5400+30"]

{[%evp 17,74,24,36,8,14,6,31,24,25,35,19,22,19,16,41,54,34,17,33,33,49,39,35,14,20,25,36,43,49,45,41,28,20,25,22,23,20,34,49,12,329,328,335,330,306,61,56,0,0,0,0,0,0,0,0,0,0,0,0]} 1. d4 {[%emt 0:00:02]} Nf6 {[%emt 0:02:03]} 2. c4 {[%emt 0:00:02]} g6 {[%emt 0:00:06]} 3. Nc3 {[%emt 0:00:04]} Bg7 {[%emt 0:00:03]} 4. Nf3 {[%emt 0:02:10]} O-O {[%emt 0:00:32]} 5. g3 {[%emt 0:00:05]} d5 {[%emt 0:03:37]} 6. cxd5 {[%emt 0:01:10]} Nxd5 {[%emt 0:00:04]} 7. Bg2 {[%emt 0:00:10]} Nc6 {[%emt 0:01:44]} 8. O-O {[%emt 0:01:14]} Nb6 {[%emt 0:00:12]} 9. e3 {[%emt 0:01:09][%cal Be2e3,Be3e4][%mdl 32]} a5 {[%emt 0:01:44]} 10. h3 {[%emt 0:06:47]} Re8 {[%emt 0:01:48]} 11. d5 {[%emt 0:03:45]} Nb4 {[%emt 0:01:33][%cal Bc6b4,Bb4a6,Ba6c5][%mdl 32]} 12. e4 {[%emt 0:02:39] White is slightly better.} c6 {[%emt 0:06:39][%cal Rc6d5]} 13. a3 {[%emt 0:05:56]} Na6 {[%emt 0:00:10]} 14. dxc6 {[%emt 0:06:40]} bxc6 {[%emt 0:10:20]} 15. Qc2 {[%emt 0:00:59]} e5 {[%emt 0:05:33]} 16. Rd1 {[%emt 0:01:21]} Qe7 {[%emt 0:02:19]} 17. Bf1 {[%emt 0:04:01]} Nc5 {[%emt 0:05:29]} 18. Bg5 {[%emt 0:01:34]} f6 {[%emt 0:01:40]} 19. Be3 {[%emt 0:00:13] b4 is the strong threat.} Be6 $1 {[%emt 0:02:10]} 20. b4 {[%emt 0:04:59]} Ncd7 {[%emt 0:52:44]} ({Not} 20... Bb3 $2 21. Qb2 Bxd1 22. Bxc5 $18) 21. Nd2 {[%emt 0:02:27]} axb4 {[%emt 0:03:10]} 22. axb4 {[%emt 0:00:02]} Rxa1 {[%emt 0:03:04]} 23. Rxa1 {[%emt 0:00:02]} Qxb4 {[%emt 0:01:05]} 24. Na4 {[%emt 0:03:10]} (24. Rb1 $5 Qa5 25. Nb3 $14) 24... Nxa4 {[%emt 0:02:54]} 25. Rxa4 {[%emt 0:00:08]} Qd6 {[%emt 0:01:04]} 26. Nc4 {[%emt 0:01:42]} Qf8 {[%emt 0:01:24]} 27. Ra6 {[%emt 0:02:39]} Nb8 {[%emt 0:06:22]} 28. Rb6 {[%emt 0:02:58]} Bh6 $2 {[%emt 0:07:09][%mdl 8192]} (28... Kh8 $11 {and Black is okay.}) 29. Bxh6 $18 {[%emt 0:05:52]} Qxh6 {[%emt 0:00:03]} 30. Nd6 {[%emt 0:00:16]} Rd8 {[%emt 0:00:05] [#]} 31. Nb7 {[%emt 0:00:37]} ({Only move:} 31. Bc4 $1 $18 {[%cal Rc4e6]} Qxh3 32. Nb7 (32. Nf5 Bxc4 33. Qxc4+ Kh8 $18)) 31... Qd2 $14 {[%emt 0:01:35]} 32. Qxd2 {[%emt 0:13:47]} (32. Qc5 $14 Rf8 33. Qe7) 32... Rxd2 $11 {[%emt 0:00:06] The position is equal.} 33. Na5 {[%emt 0:00:08][%csl LRb8,LRc6]} Rd8 {[%emt 0:01:09]} 34. Nxc6 {[%emt 0:00:05]} Nxc6 {[%emt 0:00:04]} 35. Rxc6 {[%emt 0:00:03]} Kf7 {[%emt 0:00:13]} 36. Bc4 {[%emt 0:00:54]} Bxc4 {[%emt 0:00:08]} 37. Rxc4 {[%emt 0:00:02]} g5 {[%emt 0:00:16] Weighted Error Value: White=0.21 (precise) /Black=0.28 (precise) .  Loses game:     	---       	Black=1      Missed win:     	White=1     	---        Mistake:       	White=1     	---        Inaccurate:     	White=1     	---        OK:         	White=9     	Black=12     Best:        	White=2     	Black=1      Strong:       	---       	Black=1} *